fUST/lending_fUST_20240201
["ID","MTS","AMOUNT","RATE_DAILY","PERIOD"]
[313072910,1706719840362,-500.0,0.00019452,2]
[313072911,1706719840371,-2230.8,0.00019452,2]
[313072912,1706719840381,-1927.15,0.00019452,2]
[313072913,1706719840390,-3030.0,0.00019452,2]
[313072914,1706719840400,-1443.4,0.00019452,2]
[313072915,1706719840410,-500.0,0.00019452,2]
[313072916,1706719840419,-1328.09,0.00019452,2]
[313072917,1706719840429,-500.0,0.00019452,2]
[313072918,1706719840438,-500.0,0.00019452,2]
[313072919,1706719840447,-1019.85,0.00019452,2]
[313072920,1706719840456,-500.0,0.00019452,2]
[313072921,1706719840465,-500.0,0.00019452,2]
[313072922,1706719840474,-211.1964662,0.00019589,2]
[313072923,1706719840484,-261.33412161,0.00019725,2]
[313072924,1706719840493,-500.0,0.00019726,2]
[313072925,1706719840502,-500.0,0.00019726,2]
[313072926,1706719840511,-500.0,0.00019726,2]
[313072927,1706719840520,-186.8035473,0.00019726,2]
[313072928,1706719840529,-754.5,0.00019726,2]
[313072929,1706719840539,-500.0,0.00019726,2]
[313072930,1706719840548,-500.0,0.00019726,2]
[313072931,1706719840558,-500.0,0.00019726,2]
[313072933,1706719840567,-500.0,0.00019726,2]
[313072935,1706719840576,-606.73,0.00019726,2]
[313072936,1706719840585,-604.0,0.00019726,2]
[313072938,1706719840594,-500.0,0.00019726,2]
[313072940,1706719840603,-500.0,0.00019726,2]
[313072943,1706719840695,-500.0,0.00019726,2]
[313072946,1706719840705,-522.59,0.00019726,2]
[313072947,1706719840715,-1042.02,0.00019726,2]
[313072948,1706719840724,-2836.63,0.00019726,2]
[313072949,1706719840733,-151.0,0.00019726,2]
[313072950,1706719840742,-1019.4,0.00019726,2]
[313072951,1706719840751,-350.250957,0.00019726,2]
[313072952,1706719840760,-350.250957,0.00019726,2]
[313072953,1706719840769,-500.0,0.00019726,2]
[313072954,1706719840779,-500.0,0.00019726,2]
[313072955,1706719840788,-500.0,0.00019726,2]
[313072957,1706719840797,-1124.8,0.00019726,2]
[313072959,1706719840806,-500.0,0.00019726,2]
[313072960,1706719840815,-6601.71,0.00019726,2]
[313072962,1706719840824,-500.0,0.00019726,2]
[313072963,1706719840833,-628.95,0.00019726,2]
[313072964,1706719840843,-423.32,0.00019726,2]
[313072966,1706719840852,-151.0,0.00019726,2]
[313072967,1706719840861,-9960.78,0.00019726,2]
[313072969,1706719840870,-558.02,0.00019726,2]
[313072971,1706719840880,-500.0,0.00019726,2]
[313072972,1706719840889,-920.42,0.00019726,2]
[313072973,1706719840898,-1807.89,0.00019726,2]
[313072974,1706719840907,-645.71,0.00019726,2]
[313072976,1706719840917,-500.0,0.00019726,2]
[313072977,1706719840926,-1267.67,0.00019726,2]
[313072978,1706719840935,-500.0,0.00019726,2]
[313072979,1706719840944,-500.0,0.00019726,2]
[313072980,1706719840955,-500.0,0.00019726,2]
[313072981,1706719840964,-500.0,0.00019726,2]
[313072982,1706719840974,-500.0,0.00019726,2]
[313072983,1706719840983,-2089.44,0.00019726,2]
[313072984,1706719840992,-500.0,0.00019726,2]
[313072985,1706719841002,-1427.26,0.00019726,2]
[313072986,1706719841011,-1968.27,0.00019726,2]
[313072987,1706719841020,-500.0,0.00019726,2]
[313072988,1706719841029,-500.0,0.00019726,2]
[313072989,1706719841039,-522.02,0.00019726,2]
[313072990,1706719841048,-500.0,0.00019726,2]
[313072991,1706719841058,-3691.58,0.00019726,2]
[313072992,1706719841070,-13774.12,0.00019726,2]
[313072993,1706719841079,-500.0,0.00019726,2]
[313072994,1706719841090,-500.0,0.00019726,2]
[313072995,1706719841103,-6805.11,0.00019726,2]
[313072996,1706719841112,-1293.64,0.00019726,2]
[313072997,1706719841122,-647.94,0.00019726,2]
[313072998,1706719841132,-3182.92,0.00019726,2]
[313072999,1706719841145,-981.78,0.00019726,2]
[313073000,1706719841156,-1107.53,0.00019726,2]
[313073001,1706719841165,-1126.3,0.00019726,2]
[313073002,1706719841174,-151.0,0.00019726,2]
[313073003,1706719841184,-1035.02,0.00019726,2]
[313073004,1706719841193,-2616.0,0.00019726,2]
[313073005,1706719841203,-1763.817324,0.00019726,2]
[313073006,1706719841213,-1763.817324,0.00019726,2]
[313073007,1706719841222,-500.0,0.00019726,2]
[313073008,1706719841233,-2230.8,0.00019726,2]
[313073009,1706719841242,-1927.15,0.00019726,2]
[313073010,1706719841251,-3030.0,0.00019726,2]
[313073011,1706719841261,-1443.4,0.00019726,2]
[313073012,1706719841270,-500.0,0.00019726,2]
[313073013,1706719841279,-1328.09,0.00019726,2]
[313073014,1706719841288,-500.0,0.00019726,2]
[313073015,1706719841298,-500.0,0.00019726,2]
[313073016,1706719841307,-1019.85,0.00019726,2]
[313073017,1706719841316,-500.0,0.00019726,2]
[313073018,1706719841324,-500.0,0.00019726,2]
[313073019,1706719841334,-200.0,0.00019829,2]
[313073020,1706719841344,-500.0,0.0002,2]
[313073021,1706719841353,-155.01240124,0.0002,2]
[313073022,1706719841362,-1200.08348294,0.0002,2]
[313073023,1706719841372,-178.21239998,0.0002,2]
[313073024,1706719841381,-323.57048434,0.0002,2]
[313073025,1706719841391,-500.0,0.0002,2]
[313073026,1706719841400,-500.0,0.0002,2]
[313073027,1706719841409,-754.5,0.0002,2]
[313073028,1706719841418,-500.0,0.0002,2]
[313073029,1706719841427,-500.0,0.0002,2]
[313073030,1706719841437,-500.0,0.0002,2]
[313073031,1706719841446,-331.03874954,0.0002,2]
[313073032,1706719841457,-606.73,0.0002,2]
[313073033,1706719841466,-604.0,0.0002,2]
[313073034,1706719841476,-500.0,0.0002,2]
[313073035,1706719841485,-500.0,0.0002,2]
[313073036,1706719841495,-500.0,0.0002,2]
[313073037,1706719841504,-522.59,0.0002,2]
[313073038,1706719841514,-1042.02,0.0002,2]
[313073039,1706719841523,-2836.63,0.0002,2]
[313073040,1706719841533,-151.0,0.0002,2]
[313073041,1706719841543,-1019.4,0.0002,2]
[313073042,1706719841552,-350.250957,0.0002,2]
[313073043,1706719841561,-350.250957,0.0002,2]
[313073044,1706719841570,-500.0,0.0002,2]
[313073045,1706719841580,-500.0,0.0002,2]
[313073046,1706719841589,-500.0,0.0002,2]
[313073048,1706719841599,-1124.8,0.0002,2]
[313073049,1706719841608,-500.0,0.0002,2]
[313073051,1706719841618,-6601.71,0.0002,2]
[313073053,1706719841627,-500.0,0.0002,2]
[313073055,1706719841637,-628.95,0.0002,2]
[313073057,1706719841646,-151.0,0.0002,2]
[313073058,1706719841655,-9960.78,0.0002,2]
[313073060,1706719841665,-558.02,0.0002,2]
[313073061,1706719841674,-258.58735297,0.0002,2]
[313073063,1706719841683,-920.42,0.0002,2]
[313073064,1706719841693,-1807.89,0.0002,2]
[313073066,1706719841703,-645.71,0.0002,2]
[313073068,1706719841713,-500.0,0.0002,2]
[313073070,1706719841722,-1267.67,0.0002,2]
[313073071,1706719841732,-500.0,0.0002,2]
[313073073,1706719841742,-500.0,0.0002,2]
[313073075,1706719841751,-500.0,0.0002,2]
[313073076,1706719841760,-500.0,0.0002,2]
[313073077,1706719841769,-500.0,0.0002,2]
[313073078,1706719841778,-2089.44,0.0002,2]
[313073080,1706719841788,-500.0,0.0002,2]
[313073081,1706719841797,-1427.26,0.0002,2]
[313073082,1706719841806,-1968.27,0.0002,2]
[313073083,1706719841816,-500.0,0.0002,2]
[313073084,1706719841825,-500.0,0.0002,2]
[313073085,1706719841834,-522.02,0.0002,2]
[313073086,1706719841844,-500.0,0.0002,2]
[313073088,1706719841854,-3691.58,0.0002,2]
[313073091,1706719841863,-13774.12,0.0002,2]
[313073092,1706719841872,-500.0,0.0002,2]
[313073095,1706719841882,-500.0,0.0002,2]
[313073096,1706719841891,-6805.11,0.0002,2]
[313073098,1706719841900,-1293.64,0.0002,2]
[313073100,1706719841909,-647.94,0.0002,2]
[313073102,1706719841918,-3182.92,0.0002,2]
[313073103,1706719841928,-981.78,0.0002,2]
[313073105,1706719841937,-1107.53,0.0002,2]
[313073107,1706719841946,-1126.3,0.0002,2]
[313073108,1706719841957,-1035.02,0.0002,2]
[313073109,1706719841966,-151.0,0.0002,2]
[313073110,1706719841975,-2616.0,0.0002,2]
[313073111,1706719841985,-1763.817324,0.0002,2]
[313073112,1706719841995,-1763.817324,0.0002,2]
[313073113,1706719842004,-500.0,0.0002,2]
[313073114,1706719842014,-2230.8,0.0002,2]
[313073115,1706719842023,-1927.15,0.0002,2]
[313073116,1706719842033,-3030.0,0.0002,2]
[313073117,1706719842042,-1443.4,0.0002,2]
[313073118,1706719842052,-500.0,0.0002,2]
[313073119,1706719842061,-1328.09,0.0002,2]
[313073120,1706719842073,-500.0,0.0002,2]
[313073121,1706719842081,-500.0,0.0002,2]
[313073122,1706719842091,-1019.85,0.0002,2]
[313073123,1706719842100,-381.07651183,0.0002,2]
[313073124,1706719842109,-500.0,0.0002,2]
[313073125,1706719842118,-194655.36121069,0.00020173,2]
[313073126,1706719842483,-155.0,0.00018156,3]
[313073127,1706719842494,-144.69809056,0.0001944,3]
[313073128,1706719842504,-5001.09190944,0.0001944,3]
[313073129,1706719842514,-23293.29604722,0.00020173,2]
[313073184,1706719843600,-4031.77684135,0.00020173,2]
[313073192,1706719843660,-401.55800038,0.00020173,2]
[313073494,1706719846666,-1640.22,0.00019178,2]
[313073496,1706719846675,-367.14725295,0.00019178,2]
[313073846,1706719860021,155.0,0.0001775,3]
[313073849,1706719926662,276781.47661516,0.0001775,2]
[313073855,1706720046588,155.0,0.00017258,3]
[313073856,1706720124937,200.0,0.00021089,7]
[313073860,1706720166331,250.0,0.00017933,2]
[313073863,1706720206668,24900.0,0.00017329,2]
[313073868,1706720276651,155.0,0.00016909,3]
[313073870,1706720292650,155.0,0.00016909,3]
[313073877,1706720308641,155.0,0.00016909,3]
[313073885,1706720326642,155.0,0.00016236,3]
[313073890,1706720348641,155.0,0.00016235,3]
[313073894,1706720366652,155.0,0.00016235,3]
[313073898,1706720386653,155.0,0.00016233,3]
[313073899,1706720404673,155.0,0.00016232,3]
[313073900,1706720425252,280.0,0.00021818,7]
[313073901,1706720426662,155.0,0.00016232,3]
[313073902,1706720448659,155.0,0.00016228,3]
[313073903,1706720449477,155.03875969,0.0001461,2]
[313073904,1706720460206,185.68380017,0.00017945,2]
[313073905,1706720468668,155.0,0.00016228,3]
[313073906,1706720472826,164.59714006,0.00017927,2]
[313073907,1706720479662,535.7952849,0.0001461,2]
[313073908,1706720490660,155.0,0.00016228,3]
[313073919,1706720508671,155.0,0.00016225,3]
[313073921,1706720528674,155.0,0.00016224,3]
[313073922,1706720546701,155.0,0.00016219,3]
[313073924,1706720562822,301.248706,0.00017021,2]
[313073925,1706720563445,221.01292864,0.00017928,2]
[313073926,1706720566698,155.0,0.00016219,3]
[313073927,1706720574983,302.08263072,0.000231,4]
[313073928,1706720586702,155.0,0.00016219,3]
[313073929,1706720604711,155.0,0.00016219,3]
[313073932,1706720620204,204.4513637,0.00017916,2]
[313073933,1706720624700,155.0,0.00017079,3]
[313073935,1706720646703,155.00465014,0.00016211,3]
[313073936,1706720666703,155.00465014,0.0001621,3]
[313073938,1706720671864,168.17854817,0.00017914,2]
[313073939,1706720690752,155.0,0.0001621,3]
[313073940,1706720725413,280.0,0.00021789,7]
[313073941,1706720761941,9875.25661681,0.00017916,2]
[313073944,1706720839412,608.8922524,0.00018,2]
[313073945,1706720847123,43.06740239,0.00018,2]
[313073977,1706721025366,280.0,0.00021652,7]
[313074028,1706721034162,-166.94158022,0.00017893,2]
[313074030,1706721034172,-495.02412602,0.00017893,2]
[313074031,1706721034181,-1581.70409938,0.00017894,2]
[313074032,1706721034191,-608.8922524,0.00017894,2]
[313074033,1706721034200,-154.98450155,0.00017894,2]
[313074034,1706721034209,-500.0,0.00017895,2]
[313074035,1706721034219,-1996.50298693,0.00017895,2]
[313074037,1706721034227,-184.00622733,0.00017895,2]
[313074038,1706721034236,-154.98450155,0.00017896,2]
[313074039,1706721034245,-2042.05188148,0.00017896,2]
[313074040,1706721034254,-213.76447974,0.00017897,2]
[313074041,1706721034263,-176.81034292,0.00017898,2]
[313074043,1706721034272,-37015.11340777,0.00017989,2]
[313074044,1706721034281,-20902.32807036,0.0001799,2]
[313074046,1706721034290,-49037.88622032,0.00017994,2]
[313074048,1706721034302,-34786.24797747,0.00017994,2]
[313074050,1706721034311,-6919.85569276,0.00018007,2]
[313074052,1706721034320,-321.83751026,0.0001802,2]
[313074054,1706721034330,-155.33653016,0.00018029,2]
[313074055,1706721034339,-228.15004673,0.00018031,2]
[313074057,1706721034348,-167.15177222,0.00018031,2]
[313074058,1706721034357,-18915.00160237,0.00018032,2]
[313074060,1706721034368,-620.0257606,0.0001804,2]
[313074061,1706721034377,-795.08862798,0.00018044,2]
[313074062,1706721034385,-184.00622728,0.00018057,2]
[313074063,1706721034396,-176.81034291,0.00018191,2]
[313074064,1706721034405,-184.00622728,0.00018219,2]
[313074065,1706721034414,-184.00622728,0.00018381,2]
[313074066,1706721034423,-176.81034291,0.00018484,2]
[313074067,1706721034434,-184.00622728,0.00018543,2]
[313074068,1706721034448,-176.81034291,0.00018777,2]
[313074069,1706721034458,-997.02134818,0.00018792,2]
[313074070,1706721034467,-14070.81574695,0.00018978,2]
[313074071,1706721034477,-235011.41835597,0.00019069,2]
[313074084,1706721038374,-184.00622728,0.00018704,2]
[313074086,1706721038384,-13261.95075509,0.00019069,2]
[313074087,1706721038393,-176.81034291,0.0001907,2]
[313074088,1706721038403,-13283.05330217,0.00019169,2]
[313074089,1706721038411,-4816.84748752,0.00019169,2]
[313074090,1706721038421,-1774.32773551,0.0001917,2]
[313074091,1706721038430,-7829.55202312,0.0001917,2]
[313074092,1706721038440,-527.29636402,0.0001917,2]
[313074093,1706721038452,-1697.77425412,0.0001917,2]
[313074094,1706721038461,-155.0,0.0001917,2]
[313074095,1706721038470,-688.82280451,0.0001917,2]
[313074096,1706721038479,-1243.97055445,0.00019172,2]
[313074097,1706721038489,-19892.62116688,0.00019173,2]
[313074098,1706721038498,-471.21066683,0.00019175,2]
[313074099,1706721038507,-155.01860223,0.00019175,2]
[313074100,1706721038516,-1743.00376549,0.00019175,2]
[313074101,1706721038527,-2106.19648268,0.00019175,2]
[313074102,1706721038536,-261.33412161,0.00019176,2]
[313074103,1706721038545,-500.0,0.00019178,2]
[313074104,1706721038555,-500.0,0.00019178,2]
[313074105,1706721038564,-500.0,0.00019178,2]
[313074106,1706721038573,-500.0,0.00019178,2]
[313074107,1706721038582,-581.45,0.00019178,2]
[313074108,1706721038591,-578.83,0.00019178,2]
[313074109,1706721038600,-500.0,0.00019178,2]
[313074110,1706721038609,-500.82,0.00019178,2]
[313074111,1706721038618,-500.0,0.00019178,2]
[313074112,1706721038627,-1042.02,0.00019178,2]
[313074113,1706721038636,-500.0,0.00019178,2]
[313074114,1706721038646,-500.0,0.00019178,2]
[313074115,1706721038655,-453.08497735,0.00019178,2]
[313074116,1706721038665,-3182.92,0.00019178,2]
[313074117,1706721038674,-500.0,0.00019178,2]
[313074118,1706721038769,-500.0,0.00019178,2]
[313074119,1706721038778,-500.0,0.00019178,2]
[313074120,1706721038787,-500.0,0.00019178,2]
[313074121,1706721038797,-500.0,0.00019178,2]
[313074122,1706721038806,-500.0,0.00019178,2]
[313074123,1706721038815,-500.0,0.00019178,2]
[313074124,1706721038824,-1807.89,0.00019178,2]
[313074125,1706721038832,-500.0,0.00019178,2]
[313074126,1706721038842,-500.0,0.00019178,2]
[313074127,1706721038851,-500.0,0.00019178,2]
[313074128,1706721038860,-500.0,0.00019178,2]
[313074129,1706721038870,-500.0,0.00019178,2]
[313074130,1706721038879,-500.0,0.00019178,2]
[313074131,1706721038888,-500.0,0.00019178,2]
[313074132,1706721038898,-342.75143032,0.00019178,2]
[313074133,1706721038907,-542.32133494,0.00019178,2]
[313074134,1706721038916,-500.0,0.00019178,2]
[313074135,1706721038925,-500.0,0.00019178,2]
[313074136,1706721038935,-2836.63,0.00019178,2]
[313074137,1706721038946,-500.0,0.00019178,2]
[313074138,1706721038955,-1019.4,0.00019178,2]
[313074139,1706721038964,-1035.02,0.00019178,2]
[313074140,1706721038974,-500.0,0.00019178,2]
[313074141,1706721038983,-500.0,0.00019178,2]
[313074142,1706721038992,-500.0,0.00019178,2]
[313074143,1706721039001,-1328.09,0.00019178,2]
[313074144,1706721039010,-500.0,0.00019178,2]
[313074145,1706721039019,-500.0,0.00019178,2]
[313074146,1706721039028,-500.0,0.00019178,2]
[313074147,1706721039037,-1124.8,0.00019178,2]
[313074148,1706721039046,-647.94,0.00019178,2]
[313074149,1706721039055,-500.0,0.00019178,2]
[313074150,1706721039064,-500.0,0.00019178,2]
[313074151,1706721039075,-500.0,0.00019178,2]
[313074152,1706721039084,-1107.53,0.00019178,2]
[313074153,1706721039093,-9960.78,0.00019178,2]
[313074154,1706721039102,-1267.67,0.00019178,2]
[313074155,1706721039111,-500.0,0.00019178,2]
[313074156,1706721039121,-500.0,0.00019178,2]
[313074157,1706721039130,-2089.44,0.00019178,2]
[313074158,1706721039139,-500.0,0.00019178,2]
[313074159,1706721039149,-920.42,0.00019178,2]
[313074160,1706721039158,-645.71,0.00019178,2]
[313074161,1706721039167,-500.0,0.00019178,2]
[313074162,1706721039176,-571.96371356,0.00019178,2]
[313074163,1706721039185,-424.25997704,0.00019178,2]
[313074164,1706721039194,-1278.35,0.00019178,2]
[313074165,1706721039203,-500.0,0.00019178,2]
[313074166,1706721039212,-500.0,0.00019178,2]
[313074167,1706721039222,-6805.11,0.00019178,2]
[313074168,1706721039231,-500.0,0.00019178,2]
[313074169,1706721039240,-754.5,0.00019178,2]
[313074170,1706721039249,-558.02,0.00019178,2]
[313074171,1706721039258,-500.0,0.00019178,2]
[313074172,1706721039267,-13774.12,0.00019178,2]
[313074173,1706721039276,-500.0,0.00019178,2]
[313074174,1706721039285,-1927.15,0.00019178,2]
[313074175,1706721039295,-1427.26,0.00019178,2]
[313074176,1706721039304,-500.0,0.00019178,2]
[313074177,1706721039314,-500.0,0.00019178,2]
[313074178,1706721039323,-500.0,0.00019178,2]
[313074179,1706721039332,-500.0,0.00019178,2]
[313074180,1706721039341,-500.0,0.00019178,2]
[313074181,1706721039350,-981.78,0.00019178,2]
[313074182,1706721039359,-3691.58,0.00019178,2]
[313074183,1706721039369,-500.0,0.00019178,2]
[313074184,1706721039378,-500.0,0.00019178,2]
[313074185,1706721039387,-500.0,0.00019178,2]
[313074186,1706721039396,-500.0,0.00019178,2]
[313074187,1706721039405,-1126.3,0.00019178,2]
[313074188,1706721039414,-1899.92,0.00019178,2]
[313074189,1706721039423,-2616.0,0.00019178,2]
[313074190,1706721039433,-522.02,0.00019178,2]
[313074191,1706721039444,-6601.71,0.00019178,2]
[313074192,1706721039453,-2230.8,0.00019178,2]
[313074193,1706721039465,-628.95,0.00019178,2]
[313074194,1706721039474,-500.0,0.00019178,2]
[313074195,1706721039483,-3030.0,0.00019178,2]
[313074196,1706721039492,-1019.85,0.00019178,2]
[313074197,1706721039502,-500.0,0.00019178,2]
[313074198,1706721039511,-1443.4,0.00019178,2]
[313074199,1706721039520,-165.629364,0.00019178,2]
[313074200,1706721039530,-500.0,0.00019452,2]
[313074201,1706721039540,-500.0,0.00019452,2]
[313074202,1706721039550,-500.0,0.00019452,2]
[313074203,1706721039559,-581.45,0.00019452,2]
[313074204,1706721039569,-578.83,0.00019452,2]
[313074205,1706721039579,-500.0,0.00019452,2]
[313074206,1706721039587,-500.82,0.00019452,2]
[313074207,1706721039596,-500.0,0.00019452,2]
[313074208,1706721039606,-1042.02,0.00019452,2]
[313074209,1706721039618,-500.0,0.00019452,2]
[313074210,1706721039628,-500.0,0.00019452,2]
[313074211,1706721039637,-3182.92,0.00019452,2]
[313074212,1706721039649,-500.0,0.00019452,2]
[313074213,1706721039657,-500.0,0.00019452,2]
[313074214,1706721039666,-171.81118109,0.00019452,2]
[313074215,1706721039676,-500.0,0.00019452,2]
[313074216,1706721039687,-500.0,0.00019452,2]
[313074217,1706721039696,-500.0,0.00019452,2]
[313074218,1706721039705,-1807.89,0.00019452,2]
[313074219,1706721039716,-500.0,0.00019452,2]
[313074220,1706721039724,-500.0,0.00019452,2]
[313074221,1706721039734,-500.0,0.00019452,2]
[313074222,1706721039745,-500.0,0.00019452,2]
[313074223,1706721039756,-500.0,0.00019452,2]
[313074224,1706721039766,-500.0,0.00019452,2]
[313074225,1706721039776,-427.04037808,0.00019452,2]
[313074226,1706721039785,-500.0,0.00019452,2]
[313074227,1706721039795,-2836.63,0.00019452,2]
[313074228,1706721039805,-1019.4,0.00019452,2]
[313074230,1706721039814,-1035.02,0.00019452,2]
[313074231,1706721039823,-1328.09,0.00019452,2]
[313074232,1706721039833,-500.0,0.00019452,2]
[313074233,1706721039843,-500.0,0.00019452,2]
[313074234,1706721039852,-1124.8,0.00019452,2]
[313074235,1706721039861,-647.94,0.00019452,2]
[313074236,1706721039870,-500.0,0.00019452,2]
[313074238,1706721039880,-500.0,0.00019452,2]
[313074240,1706721039889,-500.0,0.00019452,2]
[313074242,1706721039899,-1107.53,0.00019452,2]
[313074243,1706721039908,-9960.78,0.00019452,2]
[313074244,1706721039918,-1267.67,0.00019452,2]
[313074245,1706721039927,-500.0,0.00019452,2]
[313074246,1706721039937,-2089.44,0.00019452,2]
[313074247,1706721039946,-920.42,0.00019452,2]
[313074248,1706721039955,-645.71,0.00019452,2]
[313074249,1706721039964,-500.0,0.00019452,2]
[313074250,1706721039973,-1278.35,0.00019452,2]
[313074251,1706721039982,-500.0,0.00019452,2]
[313074253,1706721039991,-500.0,0.00019452,2]
[313074254,1706721040001,-6805.11,0.00019452,2]
[313074255,1706721040010,-500.0,0.00019452,2]
[313074256,1706721040020,-754.5,0.00019452,2]
[313074257,1706721040029,-500.0,0.00019452,2]
[313074258,1706721040038,-13774.12,0.00019452,2]
[313074259,1706721040047,-500.0,0.00019452,2]
[313074261,1706721040057,-1927.15,0.00019452,2]
[313074263,1706721040066,-1427.26,0.00019452,2]
[313074264,1706721040075,-500.0,0.00019452,2]
[313074265,1706721040085,-500.0,0.00019452,2]
[313074266,1706721040094,-500.0,0.00019452,2]
[313074267,1706721040103,-500.0,0.00019452,2]
[313074268,1706721040112,-500.0,0.00019452,2]
[313074269,1706721040121,-981.78,0.00019452,2]
[313074270,1706721040130,-3691.58,0.00019452,2]
[313074272,1706721040140,-500.0,0.00019452,2]
[313074273,1706721040150,-1126.3,0.00019452,2]
[313074274,1706721040159,-1899.92,0.00019452,2]
[313074275,1706721040168,-2616.0,0.00019452,2]
[313074276,1706721040178,-522.02,0.00019452,2]
[313074277,1706721040187,-6601.71,0.00019452,2]
[313074278,1706721040195,-2230.8,0.00019452,2]
[313074279,1706721040205,-628.95,0.00019452,2]
[313074280,1706721040215,-3030.0,0.00019452,2]
[313074281,1706721040224,-1019.85,0.00019452,2]
[313074282,1706721040233,-250.07075875,0.00019452,2]
[313074283,1706721040242,-1443.4,0.00019452,2]
[313074284,1706721040251,-308.4421415,0.00019452,2]
[313074285,1706721040261,-237.4751378,0.00019452,2]
[313074286,1706721040270,-158.346463,0.00019452,2]
[313074287,1706721040279,-153.0,0.00019452,2]
[313074288,1706721040288,-153.0,0.00019452,2]
[313074289,1706721040297,-199.6142226,0.00019452,2]
[313074290,1706721040306,-153.0,0.00019452,2]
[313074291,1706721040315,-153.0,0.00019452,2]
[313074292,1706721040324,-153.0,0.00019452,2]
[313074293,1706721040333,-153.0,0.00019452,2]
[313074294,1706721040343,-217.7891217,0.00019478,2]
[313074295,1706721040352,-153.0,0.00019478,2]
[313074296,1706721040361,-199.6142226,0.00019478,2]
[313074297,1706721040370,-199.6142226,0.00019478,2]
[313074298,1706721040379,-153.0000001,0.00019478,2]
[313074299,1706721040388,-153.0,0.00019478,2]
[313074300,1706721040398,-153.0,0.00019478,2]
[313074301,1706721040407,-153.0,0.00019478,2]
[313074302,1706721040417,-153.0,0.00019478,2]
[313074303,1706721040427,-199.6142226,0.00019478,2]
[313074304,1706721040438,-153.0,0.00019478,2]
[313074305,1706721040451,-153.0,0.00019478,2]
[313074306,1706721040461,-200.0,0.00019683,2]
[313074307,1706721040470,-1295.09273991,0.0001972,2]
[313074308,1706721040479,-562.24130719,0.00019722,2]
[313074309,1706721040490,-3749.82412909,0.00019723,2]
[313074310,1706721040499,-20055.39819071,0.00019724,2]
[313074311,1706721040508,-243.43578923,0.00019725,2]
[313074312,1706721040517,-500.0,0.00019726,2]
[313074313,1706721040527,-500.0,0.00019726,2]
[313074314,1706721040537,-331.03874954,0.00019726,2]
[313074315,1706721040546,-581.45,0.00019726,2]
[313074316,1706721040555,-578.83,0.00019726,2]
[313074317,1706721040565,-500.0,0.00019726,2]
[313074318,1706721040575,-500.82,0.00019726,2]
[313074319,1706721040585,-500.0,0.00019726,2]
[313074320,1706721040668,-1042.02,0.00019726,2]
[313074321,1706721040678,-500.0,0.00019726,2]
[313074322,1706721040690,-500.0,0.00019726,2]
[313074323,1706721040699,-3182.92,0.00019726,2]
[313074324,1706721040709,-500.0,0.00019726,2]
[313074325,1706721040718,-500.0,0.00019726,2]
[313074326,1706721040728,-500.0,0.00019726,2]
[313074327,1706721040737,-500.0,0.00019726,2]
[313074328,1706721040747,-500.0,0.00019726,2]
[313074329,1706721040756,-1807.89,0.00019726,2]